bitfinex-derivatives/quotes_BTCF0:USTF0_20251219
["timestamp","ask_amount","ask_price","bid_price","bid_amount"]
[1766158648433,0.0113266,88328.0,88312.0,0.004]
[1766158648744,0.00576982,88328.0,88300.0,0.0058]
[1766158649042,0.0113273,88322.0,88300.0,0.0058]
[1766158649243,0.0113269,88325.0,88303.0,0.0113296]
[1766158649445,0.00576982,88328.0,88300.0,0.0058]
[1766158649637,0.00016982,88328.0,88312.0,0.0113284]
[1766158650534,0.00016982,88328.0,88305.0,0.00016982]
[1766158650944,0.0113277,88319.0,88305.0,0.00016982]
[1766158651149,0.0113272,88323.0,88305.0,0.00016982]
[1766158651348,0.0113275,88321.0,88305.0,0.00016982]
[1766158651853,0.0113267,88327.0,88305.0,0.00016982]
[1766158652151,0.00016982,88328.0,88305.0,0.00016982]
[1766158652336,0.00016982,88328.0,88305.0,0.01149922]
[1766158652549,0.00016982,88328.0,88305.0,0.04058904]
[1766158652740,0.00016982,88328.0,88306.0,0.04041922]
[1766158652953,0.00016982,88328.0,88311.0,0.0113286]
[1766158653555,0.00016982,88328.0,88313.0,0.0113283]
[1766158653757,0.00248,88333.0,88315.0,0.011328]
[1766158654750,0.0113284,88313.0,88312.0,2e-08]
[1766158654958,0.0113284,88313.0,88270.0,0.00099999]
[1766158654959,0.0113307,88296.0,88272.0,0.0113337]
[1766158655256,0.0056,88313.0,88275.0,0.0113332]
[1766158655552,0.0113291,88308.0,88266.0,0.06160115]
[1766158655739,0.0113323,88283.0,88262.0,1.4448]
[1766158655942,0.41115007,88300.0,88239.0,0.0113378]
[1766158655943,0.00016982,88287.0,88274.0,4.36e-06]
[1766158656456,0.0113323,88283.0,88274.0,4.36e-06]
[1766158656644,0.00016982,88287.0,88274.0,4.36e-06]
[1766158656645,0.01150162,88287.0,88274.0,4.36e-06]
[1766158656845,0.0113323,88283.0,88274.0,4.36e-06]
[1766158657046,0.0113325,88281.0,88274.0,4.36e-06]
[1766158657446,8.766e-05,88282.0,88274.0,4.36e-06]
[1766158657653,0.00016982,88287.0,88275.0,0.0113333]
[1766158657956,0.00376,88290.0,88274.0,4.36e-06]
[1766158658356,0.0113308,88295.0,88274.0,4.36e-06]
[1766158658759,0.00016992,88293.0,88276.0,0.00016992]
[1766158660468,0.00016992,88293.0,88277.0,0.011333]
[1766158660667,0.00016992,88293.0,88276.0,0.00016992]
[1766158660864,0.00016992,88293.0,88277.0,0.0113329]
[1766158661268,0.00016992,88293.0,88276.0,0.00016992]
[1766158661968,0.00016992,88293.0,88278.0,0.0113328]
[1766158662164,0.00016992,88293.0,88276.0,0.00016992]
[1766158662368,0.00016992,88293.0,88276.0,0.01150312]
[1766158662770,0.00016992,88293.0,88279.0,0.0113327]
[1766158663159,0.00016992,88293.0,88283.0,0.0113321]
[1766158663356,0.00172,88314.0,88291.0,0.0113311]
[1766158663570,0.0113285,88313.0,88291.0,0.0113311]
[1766158663967,0.0113285,88313.0,88274.0,6e-08]
[1766158663968,0.0113324,88282.0,88274.0,6e-08]
[1766158664171,0.0113331,88277.0,88274.0,6e-08]
[1766158664363,0.0113333,88275.0,88267.0,8e-08]
[1766158664870,0.0113323,88283.0,88267.0,8e-08]
[1766158665464,0.0113332,88276.0,88267.0,8e-08]
[1766158665662,0.0113286,88312.0,88267.0,8e-08]
[1766158665862,0.0113298,88302.0,88268.0,0.00164]
[1766158666065,0.0113298,88302.0,88279.0,0.0113328]
[1766158666371,0.0113304,88298.0,88272.0,0.0113336]
[1766158666669,0.0171287,88311.0,88276.0,0.0113331]
[1766158666873,0.00016992,88302.0,88285.0,0.00016992]
[1766158667073,0.0113303,88299.0,88285.0,0.00016992]
[1766158667270,0.0113301,88300.0,88285.0,0.00016992]
[1766158667568,0.0113305,88297.0,88285.0,0.00016992]
[1766158668075,0.00016992,88302.0,88285.0,0.00016992]
[1766158668375,0.0113317,88288.0,88285.0,2e-08]
[1766158668673,0.0113335,88274.0,88251.0,0.0113364]
[1766158668873,0.0113335,88274.0,88253.0,0.0058]
[1766158669265,0.0113326,88281.0,88259.0,0.0113352]
[1766158669465,0.0113329,88279.0,88258.0,0.0113354]
[1766158669665,0.00016992,88277.0,88260.0,0.00016992]
[1766158670074,0.00016992,88277.0,88260.0,0.01150502]
[1766158670574,0.00016992,88277.0,88264.0,0.0113346]
[1766158670974,0.00368,88288.0,88269.0,0.011334]
[1766158671273,0.00112,88294.0,88275.0,0.0113332]
[1766158671465,0.00112,88295.0,88277.0,0.0113329]
[1766158671666,0.0124508,88295.0,88274.0,0.0113334]
[1766158671861,0.0124508,88295.0,88273.0,0.00504]
[1766158672172,0.00016992,88293.0,88276.0,0.00016992]
[1766158672874,0.00016992,88293.0,88277.0,0.011333]
[1766158673176,0.00268,88300.0,88286.0,0.0113319]
[1766158673369,0.00268,88302.0,88283.0,0.0113322]
[1766158673566,0.00268,88302.0,88273.0,0.00504]
[1766158673869,0.0113303,88299.0,88276.0,0.0113331]
[1766158674075,0.0113303,88299.0,88273.0,0.00504]
[1766158674076,0.00268,88302.0,88273.0,0.00504]
[1766158674379,2e-08,88296.0,88285.0,0.0113319]
[1766158674572,0.0113278,88318.0,88274.0,0.13124667]
[1766158674774,0.0113283,88314.0,88275.0,0.0058]
[1766158674968,0.0113307,88295.0,88275.0,0.0058]
[1766158675164,0.0058,88304.0,88275.0,0.0058]
[1766158675475,0.00204,88310.0,88288.0,0.0113315]
[1766158675675,0.00204,88310.0,88290.0,0.0113313]
[1766158676071,0.0133689,88310.0,88287.0,0.0113317]
[1766158676574,0.00011205,88307.0,88286.0,0.0058]
[1766158676964,2.05e-06,88307.0,88288.0,0.0113316]
[1766158677276,0.0113268,88326.0,88297.0,0.41115007]
[1766158677468,0.0113268,88326.0,88302.0,0.0113297]
[1766158677663,0.0113268,88326.0,88305.0,0.0113294]
[1766158677869,0.0113264,88329.0,88305.0,0.0113294]
[1766158678173,0.0113264,88329.0,88290.0,0.28070837]
[1766158678174,0.004,88333.0,88308.0,0.00016992]
[1766158678370,0.0113268,88326.0,88309.0,0.0058]
[1766158678765,0.004,88333.0,88308.0,0.00016992]
[1766158678968,0.0113276,88320.0,88296.0,1.4565305]
[1766158679184,0.0113276,88320.0,88297.0,0.00192]
[1766158679370,0.004,88333.0,88307.0,0.0113291]
[1766158679575,0.0113267,88327.0,88307.0,0.0058]
[1766158679882,0.00016992,88326.0,88308.0,0.00016992]
[1766158680780,0.00016992,88326.0,88309.0,0.00364]
[1766158681775,0.01149672,88326.0,88308.0,2e-08]
[1766158681972,2e-08,88326.0,88308.0,2e-08]
[1766158682284,2e-08,88326.0,88309.0,0.0113289]
[1766158682485,2e-08,88326.0,88315.0,0.0113281]
[1766158682676,2e-08,88326.0,88310.0,0.0058]
[1766158683072,2e-08,88326.0,88316.0,0.0113279]
[1766158683479,2e-08,88326.0,88313.0,0.0113284]
[1766158684080,2e-08,88326.0,88310.0,0.0058]
[1766158684480,2e-08,88326.0,88317.0,0.0113279]
[1766158684686,2e-08,88326.0,88315.0,0.0113281]
[1766158685381,2e-08,88326.0,88310.0,0.0058]
[1766158686981,2e-08,88326.0,88311.0,0.0113286]
[1766158687487,2e-08,88326.0,88313.0,0.0113284]
[1766158687686,0.0113276,88320.0,88308.0,2e-08]
[1766158687989,0.0113271,88324.0,88308.0,2e-08]
[1766158688184,2e-08,88326.0,88308.0,2e-08]
[1766158688185,0.0113274,88321.0,88308.0,2e-08]
[1766158688589,0.011327,88325.0,88308.0,2e-08]
[1766158688791,2e-08,88326.0,88308.0,2e-08]
[1766158689291,0.0113276,88320.0,88308.0,2e-08]
[1766158689684,0.0113271,88323.0,88308.0,2e-08]
[1766158689988,0.0113275,88321.0,88308.0,2e-08]
[1766158690890,2e-08,88326.0,88308.0,2e-08]
[1766158691580,2e-08,88326.0,88309.0,0.0113288]
[1766158691887,0.0113242,88346.0,88322.0,0.0113272]
[1766158692095,0.0113236,88351.0,88328.0,0.0113264]
[1766158692281,0.0113236,88351.0,88329.0,0.00396]
[1766158692985,0.011324,88348.0,88331.0,0.00016982]
[1766158693187,0.00016957,88349.0,88331.0,0.00016982]
[1766158694183,0.01149347,88349.0,88331.0,0.00016982]
[1766158694594,0.00016957,88349.0,88331.0,0.00016982]
[1766158694780,0.0113244,88345.0,88331.0,0.00016982]
[1766158694984,0.00016957,88349.0,88331.0,0.00016982]
[1766158696890,0.0113243,88346.0,88331.0,0.00016982]
[1766158697090,0.0113252,88338.0,88316.0,0.0113279]
[1766158697283,0.0113252,88338.0,88317.0,0.0058]
[1766158697688,0.00396,88341.0,88308.0,0.04023601]
[1766158697891,0.00396,88341.0,88268.0,0.188]
[1766158697892,0.0113276,88320.0,88301.0,0.04023601]
[1766158698096,0.00016982,88319.0,88302.0,0.00596982]
[1766158698394,0.00016982,88319.0,88294.0,8.517e-05]
[1766158698395,0.0113295,88305.0,88294.0,8.517e-05]
[1766158698594,0.0113291,88308.0,88294.0,8.517e-05]
[1766158698799,0.0056,88317.0,88294.0,8.517e-05]
[1766158699192,0.0113284,88314.0,88294.0,8.517e-05]
[1766158699390,0.0113286,88312.0,88295.0,0.00016982]
[1766158699586,0.0056,88317.0,88295.0,0.00016982]
[1766158700388,0.0113287,88311.0,88295.0,0.00016982]
[1766158700897,0.0056,88317.0,88281.0,0.04023601]
[1766158701083,0.0056,88317.0,88269.0,0.04023601]
[1766158701084,0.28064677,88300.0,88269.0,0.04023601]
[1766158701392,0.0113326,88281.0,88268.0,0.0058]
[1766158701596,0.0113326,88281.0,88254.0,0.05157191]
[1766158701796,0.011332,88285.0,88257.0,0.0113356]
[1766158702096,0.00016992,88280.0,88262.0,0.00016992]
[1766158702691,0.00016992,88280.0,88263.0,0.0113347]
[1766158702890,0.00016992,88280.0,88262.0,0.00016992]
[1766158703097,0.00016992,88280.0,88263.0,0.0113348]
[1766158703299,0.28064677,88320.0,88278.0,0.0113328]
[1766158703600,0.0113288,88311.0,88283.0,0.0113322]
[1766158703794,0.0113286,88312.0,88282.0,0.0113324]
[1766158703991,0.0113286,88312.0,88285.0,0.0113319]
[1766158704301,0.00016992,88307.0,88290.0,0.00016992]
[1766158705598,0.0113301,88300.0,88290.0,0.00016992]
[1766158705790,0.00016992,88307.0,88280.0,0.0058]
[1766158706301,0.0113293,88306.0,88280.0,0.0058]
[1766158706486,0.0113299,88302.0,88280.0,0.0058]
[1766158706892,0.0113303,88299.0,88282.0,0.00016992]
[1766158707697,0.0113301,88300.0,88282.0,0.00016992]
[1766158707903,0.01697,88301.0,88282.0,0.00016992]
[1766158708394,0.00564,88301.0,88282.0,0.00016992]
[1766158708596,0.00016992,88307.0,88287.0,0.0113317]
[1766158708795,0.00016992,88307.0,88288.0,0.00396]
[1766158710392,0.00016992,88307.0,88282.0,0.01150222]
[1766158710703,0.00016992,88307.0,88287.0,0.0058]
[1766158711809,0.01149922,88307.0,88287.0,0.0058]
[1766158712491,0.01149922,88307.0,88288.0,0.0058]
[1766158712697,0.0113299,88302.0,88287.0,0.00432]
[1766158713405,0.0113299,88302.0,88284.0,0.0058]
[1766158713592,0.0113299,88302.0,88282.0,0.00016992]
[1766158713791,0.0113299,88302.0,88283.0,0.0058]
[1766158714196,0.00016992,88307.0,88282.0,2e-08]
[1766158714396,0.0113314,88290.0,88282.0,2e-08]
[1766158714791,0.00344,88301.0,88282.0,2e-08]
[1766158714996,0.0113306,88296.0,88282.0,2e-08]
[1766158715399,0.00344,88301.0,88282.0,2e-08]
[1766158715693,0.00344,88301.0,88290.0,0.0113313]
[1766158715894,0.00016992,88307.0,88290.0,0.0113313]
[1766158716197,0.00016992,88307.0,88290.0,0.0113312]
[1766158716806,0.00016992,88307.0,88286.0,0.0056]
[1766158716807,0.00016992,88307.0,88287.0,0.0113317]
[1766158717507,0.00016992,88307.0,88286.0,0.0056]
[1766158717909,0.00016992,88307.0,88289.0,0.0113314]
[1766158718112,0.00016992,88307.0,88286.0,0.0169318]
[1766158718304,0.00016992,88307.0,88289.0,0.0113314]
[1766158718610,0.00016992,88307.0,88291.0,0.0113311]
[1766158718809,0.00016992,88307.0,88288.0,0.0113316]
[1766158720113,0.00016992,88307.0,88290.0,0.0113313]
[1766158723416,0.00016992,88307.0,88286.0,0.0056]
[1766158724611,0.00016992,88307.0,88282.0,2e-08]
[1766158725005,0.00016992,88307.0,88291.0,0.0113312]
[1766158725504,0.00016992,88307.0,88292.0,0.011331]
[1766158726313,0.00016992,88307.0,88289.0,0.0113314]
[1766158726704,0.00016992,88307.0,88283.0,0.04023601]
[1766158726909,0.0113295,88305.0,88282.0,0.04023603]
[1766158727213,0.0113297,88303.0,88284.0,0.04023601]
[1766158727516,0.0113297,88303.0,88283.0,0.04023601]
[1766158727717,0.0113297,88303.0,88284.0,0.04023601]
[1766158728218,0.01133,88301.0,88285.0,0.04023601]
[1766158728520,0.004,88304.0,88283.0,0.04023601]
[1766158728718,0.0113304,88298.0,88282.0,0.04023603]
[1766158729011,0.0113299,88302.0,88282.0,0.04023603]
[1766158729217,0.004,88304.0,88283.0,0.04023601]
[1766158729414,0.004,88304.0,88282.0,2e-08]
[1766158729603,0.0113325,88282.0,88266.0,0.0604374]
[1766158729808,0.0171325,88282.0,88261.0,0.0604374]
[1766158730005,0.0113327,88280.0,88260.0,0.0113351]
[1766158730209,0.0058,88282.0,88258.0,0.0662374]
[1766158730410,0.0058,88282.0,88259.0,0.0604374]
[1766158730604,0.00016992,88279.0,88263.0,0.0113348]
[1766158730811,0.00016992,88279.0,88267.0,0.0113343]
[1766158731412,0.0058,88282.0,88262.0,0.00016992]
[1766158731413,0.00044711,88282.0,88271.0,0.0113337]
[1766158731619,0.28064677,88320.0,88276.0,0.0113331]
[1766158731813,1.47275707,88319.0,88276.0,0.0113331]
[1766158732004,0.0113294,88306.0,88265.0,0.0058]
[1766158732206,0.0113312,88292.0,88265.0,0.0058]
[1766158732517,0.00016992,88287.0,88270.0,0.00016992]
[1766158733021,0.0113321,88285.0,88270.0,0.00016992]
[1766158733719,0.0113333,88275.0,88270.0,0.00016992]
[1766158734216,0.0113332,88277.0,88270.0,2e-08]
[1766158734410,0.0113337,88272.0,88270.0,2e-08]
[1766158734612,0.0058,88271.0,88245.0,0.06361065]
[1766158734811,0.0058,88271.0,88225.0,0.0113397]
[1766158734812,0.0113367,88249.0,88225.0,0.0113397]
[1766158735113,0.0058,88248.0,88228.0,0.0113393]
[1766158735415,0.0058,88248.0,88225.0,0.0058]
[1766158735623,0.00016992,88246.0,88229.0,0.00016992]
[1766158736406,2e-08,88246.0,88230.0,0.28064677]
[1766158736615,2e-08,88248.0,88241.0,0.0113375]
[1766158736814,2e-08,88248.0,88236.0,0.0113382]
[1766158737012,2e-08,88248.0,88232.0,0.0113388]
[1766158737419,2e-08,88248.0,88229.0,0.00016992]
[1766158737622,0.00016992,88247.0,88229.0,0.00016992]
[1766158738614,0.00016992,88247.0,88236.0,0.0113382]
[1766158738925,2e-08,88248.0,88229.0,0.00016992]
[1766158739722,2e-08,88248.0,88238.0,0.011338]
[1766158740113,2e-08,88248.0,88229.0,0.00016992]
[1766158741722,2e-08,88248.0,88227.0,0.00010937]
[1766158741723,2e-08,88248.0,88211.0,0.0113415]
[1766158741923,0.00016992,88252.0,88230.0,0.011339]
[1766158742225,0.00016992,88252.0,88219.0,0.00056]
[1766158742521,0.00016992,88252.0,88232.0,0.0113388]
[1766158742719,0.00410937,88251.0,88233.0,0.00017002]
[1766158743122,0.0113365,88250.0,88233.0,0.00017002]
[1766158743421,0.00410937,88251.0,88233.0,0.00017002]
[1766158744117,0.00010937,88251.0,88234.0,0.0113385]
[1766158744316,0.00010937,88251.0,88236.0,0.0113382]
[1766158744621,0.00250937,88251.0,88236.0,0.0113382]
[1766158744826,0.00250937,88251.0,88233.0,0.00017002]
[1766158745123,0.011338,88239.0,88233.0,2e-08]
[1766158745318,0.00116,88240.0,88233.0,2e-08]
[1766158746911,0.00010937,88251.0,88233.0,2e-08]
[1766158746912,0.00010937,88251.0,88234.0,0.0113384]
[1766158747112,0.00250937,88251.0,88237.0,0.0113381]
[1766158747312,0.00016992,88252.0,88233.0,2e-08]
[1766158747517,0.06109978,88279.0,88233.0,2e-08]
[1766158747518,0.011334,88270.0,88233.0,2e-08]
[1766158747711,0.0006,88269.0,88242.0,0.0113375]
[1766158747916,0.0006,88269.0,88233.0,2e-08]
[1766158747917,0.0006,88269.0,88247.0,0.0113368]
[1766158748322,0.0006,88269.0,88240.0,0.0058]
[1766158748524,0.00017002,88267.0,88240.0,0.0058]
[1766158748824,0.0113344,88266.0,88240.0,0.0058]
[1766158749022,0.0113349,88263.0,88240.0,0.0058]
[1766158749725,0.0113353,88260.0,88240.0,0.0058]
[1766158750021,0.0113353,88260.0,88233.0,2e-08]
[1766158750221,0.0113357,88256.0,88233.0,2e-08]
[1766158750527,0.00396,88255.0,88233.0,2e-08]
[1766158751027,0.0113362,88253.0,88233.0,2e-08]
[1766158752328,0.00396,88255.0,88233.0,2e-08]
[1766158752522,0.011336,88254.0,88233.0,2e-08]
[1766158752718,0.00396,88255.0,88233.0,2e-08]
[1766158753119,0.0113363,88252.0,88233.0,2e-08]
[1766158753314,0.00396,88255.0,88233.0,2e-08]
[1766158753520,0.0113348,88263.0,88238.0,0.0113379]
[1766158753733,0.0113356,88257.0,88233.0,2e-08]
[1766158753925,0.00532,88262.0,88233.0,2e-08]
[1766158754229,0.0113356,88258.0,88233.0,2e-08]
[1766158754427,0.0113358,88256.0,88233.0,0.01133872]
[1766158754624,0.0113361,88254.0,88233.0,2e-08]
[1766158754823,0.00532,88262.0,88233.0,2e-08]
[1766158755023,0.02625186,88261.0,88233.0,2e-08]
[1766158755223,0.00532,88262.0,88233.0,2e-08]
[1766158755224,0.0113376,88242.0,88233.0,2e-08]
[1766158755430,0.0058,88243.0,88233.0,2e-08]
[1766158755632,0.0056,88242.0,88233.0,2e-08]
[1766158755829,0.0113377,88241.0,88233.0,2e-08]
[1766158756929,0.0113384,88236.0,88233.0,2e-08]
[1766158758319,0.0113377,88241.0,88197.0,1.44596]
[1766158758524,0.0113392,88230.0,88209.0,0.0113417]
[1766158758828,0.00424,88229.0,88209.0,0.0113417]
[1766158759225,0.00017002,88228.0,88210.0,0.00017002]
[1766158759727,0.0113395,88227.0,88210.0,0.00017002]
[1766158759921,0.00017002,88228.0,88210.0,2e-08]
[1766158760122,0.0113412,88214.0,88196.0,0.00013931]
[1766158760324,0.0113417,88210.0,88196.0,0.00013931]
[1766158760526,0.011342,88208.0,88196.0,0.00013931]
[1766158760726,0.017142,88208.0,88196.0,0.00013931]
[1766158760930,0.0058,88208.0,88196.0,0.00013931]
[1766158761131,0.0058,88208.0,88197.0,0.0113433]
[1766158761349,0.0058,88208.0,88196.0,0.00013931]
[1766158762130,0.0058,88208.0,88193.0,0.00017002]
[1766158762338,0.011343,88200.0,88184.0,0.0058]
[1766158762636,0.0058,88208.0,88174.0,0.0113462]
[1766158762820,0.02633276,88207.0,88174.0,0.0113462]
[1766158763024,0.0263531,88206.0,88177.0,0.0113459]
[1766158763224,0.0113431,88199.0,88173.0,0.0113463]
[1766158763430,0.00017002,88195.0,88177.0,0.00011362]
[1766158763621,0.0113437,88194.0,88177.0,0.00011362]
[1766158764328,0.00017002,88195.0,88177.0,0.00011362]
[1766158764724,2e-08,88195.0,88193.0,0.0113438]
[1766158765027,2e-08,88195.0,88177.0,0.00011362]
[1766158765028,2e-08,88195.0,88191.0,0.0113441]
[1766158765233,2e-08,88195.0,88181.0,0.0113454]
[1766158765627,2e-08,88195.0,88178.0,0.0113457]
[1766158765828,2e-08,88195.0,88177.0,0.00591362]
[1766158766029,0.00228,88194.0,88177.0,0.00591362]
[1766158766230,0.00228,88194.0,88177.0,0.00011362]
[1766158766535,0.00228,88194.0,88178.0,0.0113457]
[1766158766835,2e-08,88195.0,88192.0,0.0113438]
[1766158767040,2e-08,88195.0,88177.0,0.00011362]
[1766158767339,2e-08,88195.0,88188.0,0.0113444]
[1766158767541,2e-08,88195.0,88177.0,0.00591362]
[1766158768038,2e-08,88195.0,88183.0,0.011345]
[1766158768237,2e-08,88195.0,88183.0,0.017145]
[1766158768634,2e-08,88195.0,88186.0,0.0113447]
[1766158768845,2e-08,88195.0,88183.0,0.0058]
[1766158769445,2e-08,88195.0,88177.0,0.00011362]
[1766158769639,0.01134372,88195.0,88177.0,0.00011362]
[1766158770232,0.0113439,88193.0,88177.0,0.00011362]
[1766158770531,2e-08,88195.0,88177.0,0.00011362]
[1766158770731,0.0113437,88194.0,88177.0,0.00011362]
[1766158770932,0.01134372,88195.0,88177.0,0.00011362]
[1766158771340,0.0113439,88193.0,88177.0,0.00011362]
[1766158771542,2e-08,88195.0,88177.0,0.00011362]
[1766158771745,2e-08,88195.0,88180.0,0.0113454]
[1766158771932,2e-08,88195.0,88178.0,0.0113457]
[1766158772330,2e-08,88195.0,88181.0,0.0113454]
[1766158772943,2e-08,88195.0,88178.0,0.0113457]
[1766158773544,0.01134362,88195.0,88177.0,0.00011362]
[1766158773742,0.0113439,88193.0,88177.0,0.00011362]
[1766158774039,0.0113452,88183.0,88177.0,3.62e-06]
[1766158774234,0.00011855,88182.0,88177.0,3.62e-06]
[1766158774632,5e-08,88182.0,88180.0,0.0113454]
[1766158774944,5e-08,88182.0,88177.0,3.62e-06]
[1766158776046,0.0113465,88173.0,88142.0,1.44668]
[1766158776246,0.0113473,88167.0,88146.0,0.0171498]
[1766158776446,0.0113468,88170.0,88148.0,0.0113495]
[1766158776645,0.0113472,88168.0,88144.0,0.01715]
[1766158776949,0.00392,88173.0,88105.0,0.0807041]
[1766158777146,0.00017012,88167.0,88133.0,1.4580715]
[1766158777441,0.0113484,88158.0,88135.0,0.0113512]
[1766158777643,0.0113484,88158.0,88137.0,0.0113509]
[1766158777840,0.0113487,88156.0,88134.0,0.0113514]
[1766158778040,0.0113487,88156.0,88133.0,0.00392]
[1766158778041,0.00484,88159.0,88133.0,0.00392]
[1766158778245,0.00017012,88155.0,88122.0,0.011353]
[1766158778436,0.00017012,88155.0,88114.0,0.0113539]
[1766158778437,0.00017012,88155.0,88125.0,1.44676]
[1766158778636,0.00017012,88155.0,88134.0,0.0113513]
[1766158778839,0.00017012,88155.0,88126.0,0.0058]
[1766158778840,0.0113489,88154.0,88131.0,0.0113518]
[1766158779041,0.0113496,88148.0,88111.0,0.0113544]
[1766158779234,9.825e-05,88158.0,88100.0,0.41252773]
[1766158779235,0.00017012,88138.0,88112.0,1.44684]
[1766158779555,0.00017012,88138.0,88113.0,0.00048]
[1766158780449,0.00017012,88138.0,88120.0,0.0113531]
[1766158780641,1.2e-07,88138.0,88132.0,0.0113516]
[1766158780840,1.2e-07,88138.0,88133.0,0.0113515]
[1766158781043,1.2e-07,88138.0,88136.0,0.0113512]
[1766158781247,1.2e-07,88138.0,88120.0,0.41252773]
[1766158781248,9.825e-05,88158.0,88132.0,0.0058]
[1766158781644,9.825e-05,88158.0,88144.0,0.0113501]
[1766158781848,0.011345,88184.0,88133.0,0.0113515]
[1766158781849,0.0113448,88186.0,88161.0,0.0113478]
[1766158782044,0.00392,88188.0,88157.0,0.0058]
[1766158782537,0.01014937,88193.0,88175.0,0.0113461]
[1766158782851,0.0113436,88195.0,88173.0,0.002]
[1766158783348,0.0113441,88192.0,88173.0,0.002]
[1766158783548,0.0113453,88182.0,88165.0,0.00284]
[1766158783736,0.0113449,88185.0,88165.0,0.00284]
[1766158784043,0.00136,88197.0,88166.0,0.00017011]
[1766158784044,0.00021933,88184.0,88166.0,0.00017011]
[1766158784249,0.0113451,88183.0,88166.0,0.00017011]
[1766158784642,0.01156443,88184.0,88166.0,0.00017011]
[1766158784843,0.00021933,88184.0,88167.0,0.0113472]
[1766158785053,0.00021933,88184.0,88170.0,0.0113468]
[1766158785249,0.00021933,88184.0,88168.0,0.0058]
[1766158785250,0.00021933,88184.0,88173.0,0.0113464]
[1766158785551,0.00136,88197.0,88176.0,0.0113459]
[1766158785753,0.0127033,88197.0,88176.0,0.0113459]
[1766158785943,0.0127033,88197.0,88173.0,0.0113464]
[1766158786545,0.00017011,88194.0,88173.0,0.0113464]
[1766158786945,0.01151391,88194.0,88173.0,0.0113464]
[1766158787247,0.0113441,88191.0,88169.0,0.0113468]
[1766158787951,0.0113445,88189.0,88169.0,0.0113468]
[1766158788155,0.00017011,88194.0,88170.0,0.0058]
[1766158788651,0.0113449,88185.0,88170.0,0.00456]
[1766158789152,0.0113449,88185.0,88166.0,0.00017011]
[1766158789454,0.00332,88231.0,88193.0,0.0113438]
[1766158789638,0.0113395,88227.0,88194.0,1.45284]
[1766158789844,0.0113401,88222.0,88197.0,0.0113432]
[1766158790044,0.02649755,88226.0,88200.0,0.0113429]
[1766158790045,0.0113397,88226.0,88200.0,0.0113429]
[1766158790355,0.0113397,88226.0,88201.0,0.0048]
[1766158790553,1e-08,88222.0,88205.0,0.00017011]
[1766158790748,1e-08,88222.0,88218.0,0.0113405]
[1766158790950,1e-08,88222.0,88219.0,0.0036]
[1766158791144,1e-08,88222.0,88219.0,0.0149404]
[1766158791646,1e-08,88222.0,88205.0,0.00017011]
[1766158791647,1e-08,88222.0,88211.0,0.0113415]
[1766158791840,1e-08,88222.0,88207.0,0.0113419]
[1766158792046,1e-08,88222.0,88208.0,0.0058]
[1766158792649,1e-08,88222.0,88214.0,0.0113411]
[1766158792849,1e-08,88222.0,88210.0,0.0113416]
[1766158793053,1e-08,88222.0,88211.0,0.0058]
[1766158793245,1e-08,88222.0,88212.0,0.0113414]
[1766158793440,1e-08,88222.0,88214.0,0.0113411]
[1766158794347,1e-08,88222.0,88217.0,0.0113407]
[1766158795155,1e-08,88222.0,88213.0,0.0171412]
[1766158795359,1e-08,88222.0,88218.0,0.0113405]
[1766158796856,1e-08,88222.0,88221.0,0.0113402]
[1766158797052,1e-08,88222.0,88221.0,0.0171402]
[1766158798059,1e-08,88222.0,88220.0,0.0113402]
[1766158798356,1e-08,88222.0,88221.0,0.0058]
[1766158798657,0.0113356,88257.0,88221.0,0.0058]
[1766158798869,0.00252,88256.0,88221.0,0.0058]
[1766158799046,0.00252,88256.0,88241.0,0.0113376]
[1766158799243,0.00252,88256.0,88241.0,0.002]
[1766158799459,0.0113363,88252.0,88240.0,0.00016999]
[1766158799647,0.0113368,88248.0,88225.0,0.0113397]
[1766158799842,0.0113368,88248.0,88226.0,0.00152]
[1766158800360,0.0113364,88252.0,88227.0,0.0113394]
[1766158800657,0.0113364,88252.0,88231.0,0.00016999]
[1766158800658,0.00016999,88248.0,88231.0,0.00016999]
[1766158800858,0.41252773,88290.0,88231.0,0.00016999]
[1766158801058,0.1977,88299.0,88251.0,0.0113363]
[1766158801059,0.0113328,88279.0,88251.0,0.0113363]
[1766158801250,0.0058,88278.0,88251.0,0.0171363]
[1766158801451,0.0058,88278.0,88255.0,0.0113358]
[1766158801651,0.0058,88278.0,88251.0,0.0171363]
[1766158801851,0.00016999,88273.0,88256.0,0.00016999]
[1766158802753,0.0113344,88267.0,88240.0,1.4577377]
[1766158802951,0.0113344,88267.0,88241.0,0.0058]
[1766158803761,0.00016999,88273.0,88245.0,0.00016999]
[1766158803958,0.00016999,88273.0,88246.0,0.00136]
[1766158804153,0.00016999,88273.0,88245.0,0.00016999]
[1766158804154,0.28106326,88270.0,88245.0,0.00016999]
[1766158804354,0.0113356,88257.0,88231.0,0.0113388]
[1766158804557,0.0113356,88257.0,88233.0,0.0113386]
[1766158804762,0.28106326,88270.0,88231.0,0.06345874]
[1766158804962,0.0113372,88245.0,88218.0,1.44628]
[1766158805258,0.00016999,88240.0,88229.0,0.0113392]
[1766158805461,0.00016999,88240.0,88230.0,0.0058]
[1766158805666,9e-08,88240.0,88234.0,0.0113385]
[1766158806065,9e-08,88240.0,88231.0,0.0113389]
[1766158806371,9e-08,88240.0,88230.0,0.0058]
[1766158806769,9e-08,88240.0,88233.0,0.0113386]
[1766158807065,9e-08,88240.0,88230.0,0.017139]
[1766158807263,9e-08,88240.0,88230.0,0.0058]
[1766158808066,9e-08,88240.0,88231.0,0.0058]
[1766158808268,9e-08,88240.0,88231.0,0.0171388]
[1766158808569,9e-08,88240.0,88231.0,0.0058]
[1766158809268,9e-08,88240.0,88232.0,0.00576]
[1766158810363,9e-08,88240.0,88234.0,0.0113385]
[1766158810670,9e-08,88240.0,88230.0,0.00576]
[1766158810963,9e-08,88240.0,88229.0,0.00288]
[1766158811356,0.01133789,88240.0,88229.0,0.00288]
[1766158811768,9e-08,88240.0,88229.0,0.00288]
[1766158812069,0.0113379,88239.0,88229.0,0.00288]
[1766158812266,9e-08,88240.0,88223.0,0.00016999]
[1766158812462,0.0113398,88225.0,88207.0,0.011342]
[1766158812671,0.0113406,88219.0,88185.0,0.0113448]
[1766158812960,0.0113406,88219.0,88182.0,0.0113452]
[1766158812961,0.0113406,88219.0,88191.0,0.1133382]
[1766158813166,0.0113383,88236.0,88192.0,0.0113439]
[1766158813167,0.0113413,88213.0,88192.0,0.0113439]
[1766158813374,0.0113406,88218.0,88197.0,0.0113432]
[1766158813672,0.0113389,88231.0,88199.0,0.00016999]
[1766158813854,0.0113365,88251.0,88228.0,0.0113393]
[1766158814058,0.0113367,88249.0,88228.0,0.00392]